fUSD/lending_fUSD_20240125
["ID","MTS","AMOUNT","RATE_DAILY","PERIOD"]
[312722360,1706188983115,-500.0,0.00052054,31]
[312722361,1706188983156,-500.0,0.00052054,31]
[312722362,1706188983201,-500.0,0.00052054,31]
[312722363,1706188983242,-834.57,0.00052054,31]
[312722364,1706188983279,-246.77644245,0.00052054,31]
[312722365,1706188983315,-2659.22,0.00052054,31]
[312722366,1706188983351,-500.0,0.00052054,31]
[312722367,1706188983387,-500.0,0.00052054,31]
[312722368,1706188983425,-706.5,0.00052054,31]
[312722369,1706188983461,-502.47,0.00052054,31]
[312722370,1706188983499,-500.0,0.00052054,31]
[312722371,1706188983536,-511.82,0.00052054,31]
[312722372,1706188983569,-735.0,0.00052054,31]
[312722373,1706188983607,-500.0,0.00052054,31]
[312722374,1706188983643,-650.71,0.00052054,31]
[312722375,1706188983676,-515.77,0.00052054,31]
[312722376,1706188983710,-2609.6,0.00052054,31]
[312722377,1706188983743,-1043.27,0.00052054,31]
[312722378,1706188983775,-2040.87,0.00052054,31]
[312722379,1706188983809,-500.0,0.00052054,31]
[312722380,1706188983842,-626.01,0.00052054,31]
[312722381,1706188983875,-500.0,0.00052054,31]
[312722382,1706188983912,-500.0,0.00052054,31]
[312722383,1706188983946,-682.62,0.00052055,30]
[312722384,1706188983980,-500.0,0.00052055,30]
[312722385,1706188984013,-453.0,0.00052112,30]
[312722386,1706188984050,-1405.25866728,0.00052152,79]
[312722387,1706188984086,-67970.0,0.00052173,30]
[312722388,1706188984121,-1823.0,0.00052173,30]
[312722389,1706188984156,-431.0,0.00052173,30]
[312722390,1706188984188,-329.0,0.00052173,30]
[312722391,1706188984223,-1405.25866728,0.00052276,79]
[312722392,1706188984257,-1224.41,0.00052328,31]
[312722393,1706188984291,-551.45,0.00052328,31]
[312722394,1706188984327,-493.988,0.00052328,31]
[312722395,1706188984367,-1626.34,0.00052328,31]
[312722396,1706188984405,-2576.58,0.00052328,31]
[312722397,1706188984597,-500.0,0.00052328,31]
[312722398,1706188984635,-500.0,0.00052328,31]
[312722399,1706188984671,-500.0,0.00052328,31]
[312722400,1706188984706,-500.0,0.00052328,31]
[312722401,1706188984740,-500.0,0.00052328,31]
[312722402,1706188984775,-500.0,0.00052328,31]
[312722403,1706188984810,-500.0,0.00052328,31]
[312722404,1706188984844,-500.0,0.00052328,31]
[312722405,1706188984878,-687.4,0.00052328,31]
[312722406,1706188984912,-500.0,0.00052328,31]
[312722407,1706188984947,-500.0,0.00052328,31]
[312722408,1706188984983,-500.0,0.00052328,31]
[312722409,1706188985020,-624.67,0.00052328,31]
[312722410,1706188985055,-500.0,0.00052328,31]
[312722411,1706188985090,-480.70553777,0.00052328,31]
[312722412,1706188985126,-500.0,0.00052328,31]
[312722413,1706188985162,-500.0,0.00052328,31]
[312722414,1706188985196,-500.0,0.00052328,31]
[312722415,1706188985232,-500.0,0.00052328,31]
[312722416,1706188985267,-500.0,0.00052328,31]
[312722417,1706188985302,-500.0,0.00052328,31]
[312722418,1706188985338,-500.0,0.00052328,31]
[312722419,1706188985374,-543.47,0.00052328,31]
[312722420,1706188985410,-500.0,0.00052328,31]
[312722421,1706188985446,-500.0,0.00052328,31]
[312722422,1706188985484,-511.97,0.00052328,31]
[312722423,1706188985521,-500.0,0.00052328,31]
[312722424,1706188985559,-500.0,0.00052328,31]
[312722425,1706188985597,-500.0,0.00052328,31]
[312722426,1706188985635,-500.0,0.00052328,31]
[312722427,1706188985676,-500.0,0.00052328,31]
[312722428,1706188985716,-500.0,0.00052328,31]
[312722429,1706188985756,-619.29475734,0.00052328,31]
[312722430,1706188985794,-500.0,0.00052328,31]
[312722431,1706188985833,-500.0,0.00052328,31]
[312722432,1706188985872,-500.0,0.00052328,31]
[312722433,1706188985911,-520.94,0.00052328,31]
[312722434,1706188985950,-674.26,0.00052328,31]
[312722435,1706188985990,-500.0,0.00052328,31]
[312722436,1706188986027,-500.0,0.00052328,31]
[312722437,1706188986065,-500.0,0.00052328,31]
[312722438,1706188986103,-500.0,0.00052328,31]
[312722439,1706188986144,-500.0,0.00052328,31]
[312722440,1706188986181,-500.0,0.00052328,31]
[312722441,1706188986218,-500.0,0.00052328,31]
[312722442,1706188986255,-500.0,0.00052328,31]
[312722443,1706188986293,-500.0,0.00052328,31]
[312722444,1706188986330,-500.0,0.00052328,31]
[312722445,1706188986365,-500.0,0.00052328,31]
[312722446,1706188986401,-500.0,0.00052328,31]
[312722447,1706188986437,-500.0,0.00052328,31]
[312722448,1706188986472,-500.0,0.00052328,31]
[312722449,1706188986512,-500.0,0.00052328,31]
[312722450,1706188986550,-500.0,0.00052328,31]
[312722451,1706188986588,-622.82,0.00052328,31]
[312722452,1706188986623,-848.34,0.00052328,31]
[312722453,1706188986657,-500.0,0.00052328,31]
[312722454,1706188986692,-500.0,0.00052328,31]
[312722455,1706188986726,-500.0,0.00052328,31]
[312722456,1706188986763,-692.14,0.00052328,31]
[312722457,1706188986798,-500.0,0.00052328,31]
[312722458,1706188986833,-500.0,0.00052328,31]
[312722459,1706188986867,-531.51,0.00052328,31]
[312722460,1706188986901,-723.91,0.00052328,31]
[312722461,1706188986935,-500.0,0.00052328,31]
[312722462,1706188986971,-500.0,0.00052328,31]
[312722463,1706188987005,-500.0,0.00052328,31]
[312722464,1706188987040,-500.0,0.00052328,31]
[312722465,1706188987075,-570.75734769,0.00052328,31]
[312722466,1706188987113,-500.0,0.00052328,31]
[312722467,1706188987151,-500.0,0.00052328,31]
[312722468,1706188987187,-500.0,0.00052328,31]
[312722469,1706188987226,-500.0,0.00052328,31]
[312722470,1706188987262,-500.0,0.00052328,31]
[312722471,1706188987298,-500.0,0.00052328,31]
[312722472,1706188987333,-457.38121066,0.00052328,31]
[312722473,1706188987372,-500.0,0.00052328,31]
[312722474,1706188987413,-500.0,0.00052328,31]
[312722475,1706188987451,-500.0,0.00052328,31]
[312722476,1706188987487,-518.42,0.00052328,31]
[312722477,1706188987523,-500.0,0.00052328,31]
[312722478,1706188987561,-556.54,0.00052328,31]
[312722479,1706188987596,-500.0,0.00052328,31]
[312722480,1706188987634,-500.0,0.00052328,31]
[312722481,1706188987670,-500.0,0.00052328,31]
[312722482,1706188987706,-500.0,0.00052328,31]
[312722483,1706188987740,-386.7442125,0.00052328,31]
[312722484,1706188987777,-500.0,0.00052328,31]
[312722485,1706188987812,-500.0,0.00052328,31]
[312722486,1706188987847,-568.52,0.00052328,31]
[312722487,1706188987882,-653.44,0.00052328,31]
[312722488,1706188987917,-500.0,0.00052328,31]
[312722489,1706188987953,-500.0,0.00052328,31]
[312722490,1706188987987,-500.0,0.00052328,31]
[312722491,1706188988021,-500.0,0.00052328,31]
[312722492,1706188988056,-500.0,0.00052328,31]
[312722493,1706188988092,-500.0,0.00052328,31]
[312722494,1706188988130,-500.0,0.00052328,31]
[312722495,1706188988167,-500.0,0.00052328,31]
[312722496,1706188988203,-628.96,0.00052328,31]
[312722497,1706188988239,-523.72,0.00052328,31]
[312722498,1706188988274,-500.0,0.00052328,31]
[312722499,1706188988310,-500.0,0.00052328,31]
[312722500,1706188988345,-899.54,0.00052328,31]
[312722501,1706188988538,-500.0,0.00052328,31]
[312722502,1706188988580,-500.0,0.00052328,31]
[312722503,1706188988621,-500.0,0.00052328,31]
[312722504,1706188988661,-500.0,0.00052328,31]
[312722505,1706188988699,-500.0,0.00052328,31]
[312722506,1706188988734,-500.0,0.00052328,31]
[312722507,1706188988769,-500.0,0.00052328,31]
[312722508,1706188988805,-500.0,0.00052328,31]
[312722509,1706188988842,-500.0,0.00052328,31]
[312722510,1706188988876,-500.0,0.00052328,31]
[312722511,1706188988914,-500.0,0.00052328,31]
[312722512,1706188988949,-528.11,0.00052328,31]
[312722513,1706188988983,-500.0,0.00052328,31]
[312722514,1706188989017,-500.0,0.00052328,31]
[312722515,1706188989052,-1037.12,0.00052328,31]
[312722516,1706188989086,-500.0,0.00052328,31]
[312722517,1706188989123,-500.0,0.00052328,31]
[312722518,1706188989158,-500.0,0.00052328,31]
[312722519,1706188989193,-500.0,0.00052328,31]
[312722520,1706188989229,-500.0,0.00052328,31]
[312722521,1706188989265,-500.0,0.00052328,31]
[312722522,1706188989300,-500.0,0.00052328,31]
[312722523,1706188989335,-500.0,0.00052328,31]
[312722524,1706188989370,-500.0,0.00052328,31]
[312722525,1706188989405,-500.0,0.00052328,31]
[312722526,1706188989441,-500.0,0.00052328,31]
[312722527,1706188989476,-500.0,0.00052328,31]
[312722528,1706188989516,-500.0,0.00052328,31]
[312722529,1706188989550,-500.0,0.00052328,31]
[312722530,1706188989586,-500.0,0.00052328,31]
[312722531,1706188989619,-500.0,0.00052328,31]
[312722532,1706188989654,-500.0,0.00052328,31]
[312722533,1706188989687,-500.0,0.00052328,31]
[312722534,1706188989722,-500.0,0.00052328,31]
[312722535,1706188989758,-500.0,0.00052328,31]
[312722536,1706188989794,-614.11535811,0.00052328,31]
[312722537,1706188989830,-500.0,0.00052328,31]
[312722538,1706188989863,-500.0,0.00052328,31]
[312722539,1706188989902,-500.0,0.00052328,31]
[312722540,1706188989937,-500.0,0.00052328,31]
[312722541,1706188989974,-500.0,0.00052328,31]
[312722542,1706188990012,-500.0,0.00052328,31]
[312722543,1706188990051,-500.0,0.00052328,31]
[312722544,1706188990088,-500.0,0.00052328,31]
[312722545,1706188990124,-500.0,0.00052328,31]
[312722546,1706188990159,-533.46,0.00052328,31]
[312722547,1706188990195,-501.9,0.00052328,31]
[312722548,1706188990233,-1106.47,0.00052328,31]
[312722549,1706188990271,-500.0,0.00052328,31]
[312722550,1706188990307,-500.0,0.00052328,31]
[312722551,1706188990342,-500.0,0.00052328,31]
[312722552,1706188990378,-500.0,0.00052328,31]
[312722553,1706188990414,-500.0,0.00052328,31]
[312722554,1706188990449,-500.0,0.00052328,31]
[312722555,1706188990484,-3932.94,0.00052328,30]
[312722556,1706188990519,-500.0,0.00052328,31]
[312722557,1706188990557,-553.31,0.00052328,31]
[312722558,1706188990593,-381.51198539,0.00052328,31]
[312722559,1706188990629,-1880.79,0.00052328,31]
[312722560,1706188990665,-582.46,0.00052328,31]
[312722561,1706188990702,-500.0,0.00052328,31]
[312722562,1706188990737,-500.0,0.00052328,31]
[312722563,1706188990771,-500.0,0.00052328,31]
[312722564,1706188990805,-3956.45,0.00052328,31]
[312722565,1706188990839,-500.0,0.00052328,31]
[312722566,1706188990873,-500.0,0.00052328,31]
[312722567,1706188990907,-500.0,0.00052328,31]
[312722568,1706188990940,-500.0,0.00052328,31]
[312722569,1706188990975,-500.0,0.00052328,31]
[312722570,1706188991010,-500.0,0.00052328,31]
[312722571,1706188991045,-500.0,0.00052328,31]
[312722572,1706188991081,-500.0,0.00052328,31]
[312722573,1706188991115,-500.0,0.00052328,31]
[312722574,1706188991152,-500.0,0.00052328,31]
[312722575,1706188991188,-678.41,0.00052328,31]
[312722576,1706188991224,-500.0,0.00052328,31]
[312722577,1706188991261,-500.0,0.00052328,31]
[312722578,1706188991298,-500.0,0.00052328,31]
[312722579,1706188991334,-500.0,0.00052328,31]
[312722580,1706188991372,-500.0,0.00052328,31]
[312722581,1706188991409,-500.0,0.00052328,31]
[312722582,1706188991444,-549.93,0.00052328,31]
[312722583,1706188991480,-500.0,0.00052328,31]
[312722584,1706188991515,-500.0,0.00052328,31]
[312722585,1706188991550,-679.41,0.00052328,31]
[312722586,1706188991586,-500.0,0.00052328,31]
[312722587,1706188991622,-509.93,0.00052328,31]
[312722588,1706188991658,-500.0,0.00052328,31]
[312722589,1706188991694,-500.0,0.00052328,31]
[312722590,1706188991729,-500.0,0.00052328,31]
[312722591,1706188991765,-192.2,0.00052328,31]
[312722592,1706188991802,-500.0,0.00052328,31]
[312722593,1706188991837,-500.0,0.00052328,31]
[312722594,1706188991871,-358.86972849,0.00052328,31]
[312722595,1706188991905,-500.0,0.00052328,31]
[312722596,1706188991938,-500.0,0.00052328,31]
[312722597,1706188991974,-1090.07,0.00052328,31]
[312722598,1706188992009,-500.0,0.00052328,31]
[312722599,1706188992044,-521.96,0.00052328,31]
[312722600,1706188992081,-684.55,0.00052328,31]
[312722601,1706188992124,-500.0,0.00052328,31]
[312722602,1706188992164,-500.0,0.00052328,31]
[312722603,1706188992204,-636.73029643,0.00052328,31]
[312722604,1706188992240,-500.0,0.00052328,31]
[312722605,1706188992277,-500.0,0.00052328,31]
[312722606,1706188992465,-500.0,0.00052328,31]
[312722607,1706188992506,-557.35,0.00052328,31]
[312722608,1706188992543,-500.0,0.00052328,31]
[312722609,1706188992582,-500.0,0.00052328,31]
[312722610,1706188992619,-500.0,0.00052328,31]
[312722611,1706188992657,-753.41,0.00052328,31]
[312722612,1706188992693,-500.0,0.00052328,31]
[312722613,1706188992728,-500.0,0.00052328,31]
[312722614,1706188992763,-500.0,0.00052328,31]
[312722615,1706188992799,-500.0,0.00052328,31]
[312722616,1706188992835,-500.0,0.00052328,31]
[312722617,1706188992871,-500.0,0.00052328,31]
[312722618,1706188992910,-761.84,0.00052328,31]
[312722619,1706188992957,-500.0,0.00052328,31]
[312722620,1706188993002,-507.48,0.00052328,31]
[312722621,1706188993044,-153.69048133,0.00052328,31]
[312722622,1706188993085,-500.0,0.00052328,31]
[312722623,1706188993125,-500.0,0.00052328,31]
[312722624,1706188993164,-500.0,0.00052328,31]
[312722625,1706188993203,-1413.36,0.00052328,31]
[312722626,1706188993242,-1123.79,0.00052328,31]
[312722627,1706188993279,-500.0,0.00052328,31]
[312722628,1706188993317,-500.0,0.00052328,31]
[312722629,1706188993354,-500.0,0.00052328,31]
[312722630,1706188993389,-2527.99,0.00052328,31]
[312722631,1706188993425,-457.57165285,0.00052328,31]
[312722632,1706188993462,-2252.57,0.00052328,31]
[312722633,1706188993499,-500.0,0.00052328,31]
[312722634,1706188993534,-500.0,0.00052328,31]
[312722635,1706188993571,-4785.39,0.00052328,31]
[312722636,1706188993609,-681.67,0.00052328,31]
[312722637,1706188993649,-757.11,0.00052328,31]
[312722638,1706188993684,-500.0,0.00052328,31]
[312722639,1706188993719,-500.0,0.00052328,31]
[312722640,1706188993754,-585.3526101,0.00052328,31]
[312722641,1706188993794,-578.13,0.00052328,31]
[312722642,1706188993833,-1195.74,0.00052328,31]
[312722643,1706188993869,-646.08,0.00052328,31]
[312722644,1706188993904,-500.0,0.00052328,31]
[312722645,1706188993939,-500.0,0.00052328,31]
[312722646,1706188993977,-668.94,0.00052328,31]
[312722647,1706188994016,-500.0,0.00052328,31]
[312722648,1706188994054,-416.76167037,0.00052328,31]
[312722649,1706188994092,-440.063077,0.00052328,31]
[312722650,1706188994130,-215.55069735,0.00052328,31]
[312722651,1706188994168,-624.44,0.00052328,31]
[312722652,1706188994204,-500.0,0.00052328,31]
[312722653,1706188994242,-645.31325741,0.00052328,31]
[312722654,1706188994279,-500.0,0.00052328,31]
[312722655,1706188994315,-500.0,0.00052328,31]
[312722656,1706188994355,-664.74,0.00052328,31]
[312722657,1706188994392,-500.0,0.00052328,31]
[312722658,1706188994430,-552.93,0.00052328,31]
[312722659,1706188994468,-500.0,0.00052328,31]
[312722660,1706188994513,-569.49,0.00052328,31]
[312722661,1706188994553,-538.01,0.00052328,31]
[312722662,1706188994590,-651.62,0.00052328,31]
[312722663,1706188994626,-567.83,0.00052328,31]
[312722664,1706188994661,-3543.8,0.00052328,31]
[312722665,1706188994695,-500.0,0.00052328,31]
[312722666,1706188994730,-500.0,0.00052328,31]
[312722667,1706188994767,-500.0,0.00052328,31]
[312722668,1706188994804,-150.47757121,0.00052328,31]
[312722669,1706188994840,-500.0,0.00052328,31]
[312722670,1706188994876,-500.0,0.00052328,31]
[312722671,1706188994919,-500.0,0.00052328,31]
[312722672,1706188994957,-594.79,0.00052328,31]
[312722673,1706188994996,-500.0,0.00052328,31]
[312722674,1706188995032,-502.34,0.00052328,31]
[312722675,1706188995068,-611.77,0.00052328,31]
[312722676,1706188995104,-513.18,0.00052328,31]
[312722677,1706188995143,-591.91,0.00052328,31]
[312722678,1706188995183,-549.63,0.00052328,31]
[312722679,1706188995221,-500.0,0.00052328,31]
[312722680,1706188995260,-500.0,0.00052328,31]
[312722681,1706188995301,-500.0,0.00052328,31]
[312722682,1706188995341,-565.29,0.00052328,31]
[312722683,1706188995381,-892.35,0.00052328,31]
[312722684,1706188995423,-500.0,0.00052328,31]
[312722685,1706188995460,-500.0,0.00052328,31]
[312722686,1706188995496,-500.0,0.00052328,31]
[312722687,1706188995534,-696.05,0.00052328,31]
[312722688,1706188995569,-500.0,0.00052328,31]
[312722689,1706188995611,-503.96,0.00052328,31]
[312722690,1706188995652,-1045.18,0.00052328,31]
[312722691,1706188995688,-500.0,0.00052328,31]
[312722692,1706188995727,-500.0,0.00052328,31]
[312722693,1706188995769,-500.0,0.00052328,31]
[312722694,1706188995808,-505.83,0.00052328,31]
[312722695,1706188995846,-616.19,0.00052328,31]
[312722696,1706188995884,-569.95,0.00052328,31]
[312722697,1706188995920,-500.0,0.00052328,31]
[312722698,1706188995958,-500.0,0.00052328,31]
[312722699,1706188995996,-500.0,0.00052328,31]
[312722700,1706188996034,-1085.14,0.00052328,31]
[312722701,1706188996075,-740.01,0.00052328,31]
[312722702,1706188996115,-658.74,0.00052328,31]
[312722703,1706188996155,-8322.88,0.00052328,31]
[312722704,1706188996193,-500.0,0.00052328,31]
[312722705,1706188996233,-500.0,0.00052328,31]
[312722706,1706188996271,-728.72,0.00052328,31]
[312722707,1706188996312,-1773.53,0.00052328,31]
[312722708,1706188996351,-1240.04,0.00052328,31]
[312722709,1706188996579,-599.04,0.00052328,31]
[312722710,1706188996618,-808.35,0.00052328,31]
[312722711,1706188996655,-605.14,0.00052328,31]
[312722712,1706188996691,-500.0,0.00052328,31]
[312722713,1706188996726,-500.0,0.00052328,31]
[312722714,1706188996763,-880.58,0.00052328,31]
[312722715,1706188996800,-903.12,0.00052328,31]
[312722716,1706188996836,-545.45,0.00052328,31]
[312722717,1706188996878,-500.0,0.00052328,31]
[312722718,1706188996915,-500.0,0.00052328,31]
[312722719,1706188996954,-3577.61,0.00052328,31]
[312722720,1706188996991,-685.58,0.00052328,31]
[312722721,1706188997031,-562.88,0.00052328,31]
[312722722,1706188997069,-952.48,0.00052328,31]
[312722723,1706188997108,-500.0,0.00052328,31]
[312722724,1706188997151,-500.0,0.00052328,31]
[312722725,1706188997190,-818.92,0.00052328,31]
[312722726,1706188997231,-567.03,0.00052328,31]
[312722727,1706188997268,-500.0,0.00052328,31]
[312722728,1706188997305,-500.0,0.00052328,31]
[312722729,1706188997343,-702.34,0.00052328,31]
[312722730,1706188997380,-529.03,0.00052328,31]
[312722731,1706188997417,-919.78,0.00052328,31]
[312722732,1706188997457,-682.14,0.00052328,31]
[312722733,1706188997496,-500.0,0.00052328,31]
[312722734,1706188997537,-506.1,0.00052328,31]
[312722735,1706188997578,-500.0,0.00052328,31]
[312722736,1706188997617,-536.77785281,0.00052328,31]
[312722737,1706188997658,-551.21685632,0.00052328,31]
[312722738,1706189001484,-20091.5004,0.0004588,120]
[312722739,1706189001578,-1405.25866728,0.000524,80]
[312722740,1706189001625,-231694.35702015,0.000525,120]
[312722741,1706189001667,-38000.0,0.000525,60]
[312722742,1706189001709,-2511.0,0.000525,120]
[312722743,1706189001751,-1005.0,0.000525,120]
[312722744,1706189001790,-5000.0,0.000525,120]
[312722745,1706189001830,-153.46651434,0.00052507,60]
[312722746,1706189001868,-153.90506379,0.00052508,60]
[312722747,1706189001908,-154.23863765,0.00052531,60]
[312722748,1706189001946,-156.59321412,0.00052547,60]
[312722749,1706189001985,-154.2973801,0.00052548,60]
[312722750,1706189002025,-875.1922486,0.0005255,120]
[312722751,1706189002065,-161.46382068,0.0005256,60]
[312722752,1706189002103,-153.46651434,0.00052571,60]
[312722753,1706189002145,-153.46651434,0.00052589,60]
[312722754,1706189002191,-942.26,0.00052602,120]
[312722755,1706189002239,-162.32786334,0.00052602,60]
[312722756,1706189002285,-154.2973801,0.00052612,60]
[312722757,1706189002323,-158.9923502,0.00052613,60]
[312722758,1706189002362,-161.46382068,0.00052626,60]
[312722759,1706189002401,-156.51295806,0.0005263,60]
[312722760,1706189002440,-153.46651437,0.00052674,60]
[312722761,1706189002477,-156.51295816,0.00052675,60]
[312722762,1706189002514,-174.13403783,0.00052682,60]
[312722763,1706189002550,-153.90506379,0.00052683,60]
[312722764,1706189002587,-236.07718374,0.000527,120]
[312722765,1706189002628,-500.0,0.0005274,120]
[312722766,1706189002664,-198.0,0.00052747,120]
[312722767,1706189002701,-150.00000066,0.00052748,90]
[312722768,1706189002742,-5000.0,0.0005275,120]
[312722769,1706189002782,-171.60158336,0.00052761,60]
[312722770,1706189002823,-400.83273357,0.00052761,60]
[312722771,1706189002859,-319.33302481,0.0005277,90]
[312722772,1706189002894,-161.46382068,0.0005277,60]
[312722773,1706189002933,-1328.70348432,0.0005279,120]
[312722774,1706189002974,-1356.34664087,0.00052798,60]
[312722775,1706189003011,-5355.59211629,0.000528,45]
[312722776,1706189003050,-40306.0094006,0.000528,120]
[312722777,1706189003086,-153.90506379,0.00052816,60]
[312722778,1706189003123,-155.21565969,0.00052842,60]
[312722779,1706189003160,-161.46382082,0.00052875,60]
[312722780,1706189003202,-942.26,0.00052876,120]
[312722781,1706189003255,-1356.34664087,0.00052879,60]
[312722782,1706189003294,-2637549.76988401,0.00052884,60]
[312722783,1706189021078,-170.26,0.00032877,15]
[312722784,1706189021124,-697.35894259,0.00034998,15]
[312722785,1706189021193,-1050.6092086,0.00035,14]
[312722786,1706189021236,-1674.47888566,0.000401,12]
[312722787,1706189021276,-154.142781,0.00041502,30]
[312722788,1706189021312,-189.170661,0.00041502,30]
[312722789,1706189021350,-840.85262393,0.00042,120]
[312722790,1706189021385,-175.206943,0.00042015,30]
[312722791,1706189021422,-154.142781,0.00042015,30]
[312722792,1706189021455,-189.170661,0.00042015,30]
[312722793,1706189021489,-752.59232144,0.000425,10]
[312722794,1706189021524,-154.142781,0.00042527,30]
[312722795,1706189021559,-189.170661,0.00042527,30]
[312722796,1706189021596,-1000.0,0.000429,15]
[312722797,1706189021627,-1674.47888557,0.0004297,15]
[312722798,1706189021660,-38121.99985019,0.00043,30]
[312722799,1706189021696,-86254.9225658,0.00043029,10]
[312722800,1706189021730,-175.206943,0.0004304,30]
[312722801,1706189021765,-154.142781,0.0004304,30]
[312722802,1706189021798,-189.170661,0.0004304,30]
[312722803,1706189021831,-170.26,0.00043151,15]
[312722804,1706189021865,-1592.54670592,0.00044,30]
[312722805,1706189021898,-2110.0,0.000445,15]
[312722806,1706189021932,-86254.9225658,0.0004499,10]
[312722807,1706189021966,-86254.9225658,0.0004499,10]
[312722808,1706189022000,-73107.78520673,0.00045,25]
[312722809,1706189022035,-322.96904089,0.00045,27]
[312722810,1706189022069,-222.22127664,0.00045,17]
[312722811,1706189022102,-1000.0,0.00045,15]
[312722812,1706189022136,-1790.592039,0.00045,17]
[312722813,1706189022170,-306.262701,0.00045,21]
[312722814,1706189022205,-2142.86,0.00045,15]
[312722815,1706189022240,-5000.0,0.00045231,20]
[312722816,1706189022277,-150.0125,0.00045498,22]
[312722817,1706189022311,-3007.58712591,0.000455,21]
[312722818,1706189022344,-150.0,0.0004566,20]
[312722819,1706189022377,-5000.0,0.00045678,20]
[312722820,1706189022412,-1674.47888557,0.00045841,18]
[312722821,1706189022448,-1667.59890668,0.000459,21]
[312722822,1706189022484,-86254.9225658,0.0004598,10]
[312722823,1706189022523,-200.0,0.00045987,15]
[312722824,1706189022556,-86254.9225658,0.0004599,10]
[312722825,1706189022590,-172509.845132,0.0004599,10]
[312722826,1706189022624,-100000.0,0.00046,26]
[312722827,1706189022657,-300.0,0.00046,28]
[312722828,1706189022693,-150.0125,0.00046498,22]
[312722829,1706189022728,-2922.84248092,0.00046586,17]
[312722830,1706189022935,-5350.51597689,0.00046586,20]
[312722831,1706189022972,-1583.58874958,0.00046586,12]
[312722832,1706189023008,-4332.7129237,0.00046586,17]
[312722833,1706189023046,-1632.93948184,0.00046586,16]
[312722834,1706189023081,-200.0,0.00046987,16]
[312722835,1706189023119,-100000.0,0.00047,27]
[312722836,1706189023156,-300.0,0.00047,29]
[312722837,1706189023188,-20000.0,0.00047,20]
[312722838,1706189023223,-150.0125,0.00047498,22]
[312722839,1706189023257,-210.19679439,0.00047959,10]
[312722840,1706189023292,-200.0,0.00047987,17]
[312722841,1706189023326,-11561.24787136,0.00048,28]
[312722842,1706189030761,-155.34742297,0.000489,45]
[312722843,1706189030811,-500.0,0.00049589,120]
[312722844,1706189030853,-155.34742293,0.00049871,46]
[312722845,1706189030886,-500.0,0.0004989,120]
[312722846,1706189031085,-500.0,0.00050191,120]
[312722847,1706189031127,-500.0,0.00050493,120]
[312722848,1706189031171,-500.0,0.00050794,120]
[312722849,1706189031210,-155.34742293,0.00050842,47]
[312722850,1706189031252,-500.0,0.00051095,120]
[312722851,1706189031290,-155.0,0.00051322,60]
[312722852,1706189031324,-500.0,0.00051397,120]
[312722853,1706189031363,-500.0,0.00051698,120]
[312722854,1706189031398,-2471.0,0.000517,117]
[312722855,1706189031436,-155.34742293,0.00051813,49]
[312722856,1706189031472,-500.0,0.00052,120]
[312722857,1706189031506,-3040.0,0.00052,120]
[312722858,1706189031548,-150.0,0.00052054,120]
[312722859,1706189031582,-500.0,0.00052301,120]